fUST/lending_fUST_20250627
["ID","MTS","AMOUNT","RATE_DAILY","PERIOD"]
[367989332,1750984246125,-1083.93,0.00020863,2]
[367989334,1750984246134,-500.0,0.00020863,2]
[367989336,1750984246144,-445.2204973,0.00020863,2]
[367989338,1750984246153,-460.0,0.00020863,2]
[367989340,1750984246164,-460.0,0.00020863,2]
[367989341,1750984246174,-460.0,0.00020863,2]
[367989343,1750984246183,-460.0,0.00020863,2]
[367989345,1750984246192,-500.0,0.00020863,2]
[367989347,1750984246204,-990.75,0.00020863,2]
[367989349,1750984246214,-465.41898829,0.00020863,2]
[367989352,1750984246223,-410.44351872,0.00020863,2]
[367989354,1750984246232,-460.0,0.00020863,2]
[367989356,1750984246242,-442.67268891,0.00020863,2]
[367989359,1750984246251,-387.342012,0.00020863,2]
[367989362,1750984246260,-387.342012,0.00020863,2]
[367989365,1750984246270,-460.0,0.00020863,2]
[367989367,1750984246280,-401.70220804,0.00020863,2]
[367989369,1750984246290,-505.06766196,0.00020863,2]
[367989371,1750984246299,-460.0,0.00020863,2]
[367989373,1750984246309,-460.00000001,0.00020863,2]
[367989375,1750984246318,-460.5184143,0.00020864,2]
[367989377,1750984246327,-460.0,0.00020864,2]
[367989379,1750984246336,-460.0,0.00020864,2]
[367989380,1750984246346,-460.0,0.00020864,2]
[367989382,1750984246355,-460.0,0.00020864,2]
[367989384,1750984246365,-460.0,0.00020864,2]
[367989386,1750984246374,-460.0,0.00020864,2]
[367989388,1750984246385,-460.0,0.00020864,2]
[367989390,1750984246394,-282.70443634,0.00020864,2]
[367989392,1750984246404,-460.0,0.00020864,2]
[367989394,1750984246413,-460.0,0.00020864,2]
[367989396,1750984246422,-820.11484698,0.00020865,2]
[367989398,1750984246432,-384.8,0.00020899,2]
[367989400,1750984246441,-7100.93762302,0.000209,4]
[367989402,1750984246451,-460.0,0.00020928,2]
[367989404,1750984246461,-465.44097347,0.00020928,2]
[367989406,1750984246470,-460.0,0.00020928,2]
[367989408,1750984246480,-460.0,0.00020928,2]
[367989410,1750984246489,-460.0,0.00020928,2]
[367989412,1750984246498,-460.0,0.00020928,2]
[367989414,1750984246508,-460.0,0.00020929,2]
[367989416,1750984246518,-460.0,0.00020929,2]
[367989418,1750984246527,-409.14901955,0.00020929,2]
[367989420,1750984246536,-479.56126201,0.00020929,2]
[367989422,1750984246546,-460.0,0.00020929,2]
[367989428,1750984246593,-460.0,0.00020929,2]
[367989430,1750984246603,-460.0,0.00020929,2]
[367989431,1750984246612,-460.0,0.00020929,2]
[367989433,1750984246621,-501.07,0.00020929,2]
[367989435,1750984246631,-538.91,0.00020929,2]
[367989437,1750984246640,-2288.39,0.00020929,2]
[367989439,1750984246649,-972.6,0.00020929,2]
[367989441,1750984246659,-1189.04,0.00020929,2]
[367989443,1750984246669,-749.13,0.00020929,2]
[367989445,1750984246679,-460.0,0.00020929,2]
[367989447,1750984246688,-460.0,0.00020929,2]
[367989449,1750984246697,-460.0,0.00020929,2]
[367989451,1750984246706,-2675.26,0.00020929,2]
[367989453,1750984246717,-460.0,0.00020929,2]
[367989455,1750984246726,-724.92,0.00020929,2]
[367989457,1750984246735,-3092.49,0.00020929,2]
[367989459,1750984246745,-702.58,0.00020929,2]
[367989460,1750984246755,-2425.21,0.00020929,2]
[367989462,1750984246764,-1965.68,0.00020929,2]
[367989464,1750984246774,-460.0,0.00020929,2]
[367989466,1750984246784,-460.0,0.00020929,2]
[367989468,1750984246793,-460.0,0.00020929,2]
[367989470,1750984246802,-460.0,0.00020929,2]
[367989472,1750984246811,-863.29,0.00020929,2]
[367989474,1750984246821,-841.33,0.00020929,2]
[367989476,1750984246830,-797.33,0.00020929,2]
[367989478,1750984246839,-874.46,0.00020929,2]
[367989480,1750984246848,-460.0,0.00020929,2]
[367989482,1750984246856,-460.0,0.00020929,2]
[367989484,1750984246866,-460.0,0.00020929,2]
[367989485,1750984246875,-794.57,0.00020929,2]
[367989487,1750984246885,-430.0,0.0002093,2]
[367989489,1750984246894,-507.76678407,0.0002093,2]
[367989491,1750984246903,-400.0,0.0002093,2]
[367989493,1750984246912,-526.78093671,0.0002093,2]
[367989495,1750984246921,-460.0,0.00020932,2]
[367989497,1750984246931,-480.11,0.00020932,2]
[367989499,1750984246939,-460.0,0.00020932,2]
[367989501,1750984246949,-604.0906224,0.00020932,2]
[367989503,1750984246958,-460.0,0.00020932,2]
[367989505,1750984246967,-460.0,0.00020932,2]
[367989507,1750984246976,-460.0,0.00020932,2]
[367989509,1750984246986,-460.0,0.00020932,2]
[367989510,1750984246995,-460.0,0.00020932,2]
[367989512,1750984247004,-460.0,0.00020932,2]
[367989514,1750984247014,-460.0,0.00020932,2]
[367989516,1750984247023,-679.86,0.00020932,2]
[367989518,1750984247032,-491.2,0.00020932,2]
[367989520,1750984247041,-460.0,0.00020932,2]
[367989522,1750984247050,-460.0,0.00020932,2]
[367989524,1750984247059,-460.0,0.00020932,2]
[367989526,1750984247069,-460.0,0.00020932,2]
[367989528,1750984247078,-460.0,0.00020932,2]
[367989530,1750984247089,-460.0,0.00020932,2]
[367989532,1750984247098,-460.0,0.00020932,2]
[367989534,1750984247108,-460.0,0.00020932,2]
[367989535,1750984247119,-460.0,0.00020932,2]
[367989537,1750984247128,-460.0,0.00020932,2]
[367989539,1750984247138,-460.0,0.00020932,2]
[367989541,1750984247146,-555.77,0.00020932,2]
[367989543,1750984247155,-698.36,0.00020932,2]
[367989545,1750984247165,-460.0,0.00020932,2]
[367989547,1750984247174,-473.33,0.00020932,2]
[367989549,1750984247183,-460.0,0.00020932,2]
[367989551,1750984247193,-460.0,0.00020932,2]
[367989553,1750984247206,-460.0,0.00020932,2]
[367989555,1750984247215,-1092.86,0.00020932,2]
[367989557,1750984247225,-460.0,0.00020932,2]
[367989559,1750984247234,-460.0,0.00020932,2]
[367989561,1750984247243,-460.0,0.00020932,2]
[367989563,1750984247253,-460.0,0.00020932,2]
[367989564,1750984247262,-460.0,0.00020932,2]
[367989566,1750984247271,-975.61,0.00020932,2]
[367989568,1750984247281,-460.0,0.00020932,2]
[367989570,1750984247291,-460.0,0.00020932,2]
[367989572,1750984247302,-460.0,0.00020932,2]
[367989574,1750984247311,-768.13,0.00020932,2]
[367989576,1750984247321,-539.6,0.00020932,2]
[367989578,1750984247330,-535.5,0.00020932,2]
[367989580,1750984247340,-851.11,0.00020932,2]
[367989582,1750984247349,-460.0,0.00020932,2]
[367989584,1750984247358,-1070.23,0.00020932,2]
[367989586,1750984247368,-460.0,0.00020932,2]
[367989588,1750984247377,-646.66,0.00020932,2]
[367989590,1750984247387,-151.0,0.00020932,2]
[367989592,1750984247396,-460.0,0.00020932,2]
[367989594,1750984247406,-151.0,0.00020932,2]
[367989596,1750984247415,-730.08,0.00020932,2]
[367989598,1750984247424,-465.28,0.00020932,2]
[367989600,1750984247434,-1489.74,0.00020932,2]
[367989602,1750984247443,-460.0,0.00020932,2]
[367989604,1750984247452,-460.0,0.00020932,2]
[367989606,1750984247461,-460.0,0.00020932,2]
[367989607,1750984247470,-151.0,0.00020932,2]
[367989609,1750984247479,-733.86,0.00020932,2]
[367989611,1750984247488,-913.31,0.00020932,2]
[367989613,1750984247497,-460.0,0.00020932,2]
[367989615,1750984247506,-460.0,0.00020932,2]
[367989617,1750984247515,-460.0,0.00020932,2]
[367989619,1750984247524,-460.0,0.00020932,2]
[367989621,1750984247534,-768.24,0.00020932,2]
[367989623,1750984247544,-873.54,0.00020932,2]
[367989625,1750984247554,-646.21,0.00020932,2]
[367989627,1750984247563,-460.0,0.00020932,2]
[367989629,1750984247572,-460.0,0.00020932,2]
[367989631,1750984247581,-852.25,0.00020932,2]
[367989633,1750984247591,-460.0,0.00020932,2]
[367989635,1750984247599,-460.0,0.00020932,2]
[367989637,1750984247609,-460.0,0.00020932,2]
[367989639,1750984247618,-183.86314245,0.00020932,2]
[367989640,1750984247627,-612.32,0.00020932,2]
[367989642,1750984247636,-460.0,0.00020932,2]
[367989644,1750984247645,-387.342012,0.00020932,2]
[367989646,1750984247654,-1266.29,0.00020932,2]
[367989648,1750984247664,-460.0,0.00020932,2]
[367989650,1750984247673,-387.342012,0.00020932,2]
[367989652,1750984247682,-460.0,0.00020932,2]
[367989654,1750984247691,-460.0,0.00020932,2]
[367989656,1750984247701,-460.0,0.00020932,2]
[367989658,1750984247710,-460.0,0.00020933,2]
[367989660,1750984247719,-460.0,0.00020933,2]
[367989661,1750984247728,-460.0,0.00020933,2]
[367989663,1750984247737,-6083.44,0.00020933,2]
[367989666,1750984247747,-1316.85,0.00020933,2]
[367989667,1750984247756,-460.0,0.00020933,2]
[367989669,1750984247766,-1893.33,0.00020933,2]
[367989671,1750984247775,-524.53,0.00020934,2]
[367989673,1750984247785,-482.96,0.00020934,2]
[367989675,1750984247795,-460.0,0.00020934,2]
[367989677,1750984247804,-2382.43,0.00020934,2]
[367989679,1750984247813,-1219.44,0.00020934,2]
[367989681,1750984247823,-548.77,0.00020934,2]
[367989683,1750984247832,-460.0,0.00020934,2]
[367989685,1750984247842,-703.86,0.00020934,2]
[367989687,1750984247851,-1908.1,0.00020934,2]
[367989689,1750984247861,-460.0,0.00020934,2]
[367989691,1750984247871,-1716.67,0.00020934,2]
[367989693,1750984247881,-4350.95,0.00020934,2]
[367989695,1750984247890,-460.0,0.00020934,2]
[367989697,1750984247900,-460.0,0.00020934,2]
[367989699,1750984247910,-2051.59,0.00020934,2]
[367989701,1750984247920,-1108.25,0.00020934,2]
[367989703,1750984247929,-507.76,0.00020934,2]
[367989705,1750984247940,-460.0,0.00020934,2]
[367989707,1750984247950,-460.0,0.00020965,2]
[367989709,1750984247960,-460.0,0.00020965,2]
[367989711,1750984247970,-460.0,0.00020965,2]
[367989713,1750984247980,-460.0,0.00020965,2]
[367989715,1750984247990,-460.0,0.00020965,2]
[367989717,1750984248000,-469.18,0.00020965,2]
[367989719,1750984248010,-460.0,0.00020965,2]
[367989721,1750984248019,-460.0,0.00020965,2]
[367989723,1750984248028,-277.3440546,0.00020965,2]
[367989724,1750984248038,-460.0,0.00020965,2]
[367989726,1750984248048,-500.0,0.00020965,2]
[367989728,1750984248057,-971.9,0.00020965,2]
[367989730,1750984248067,-723.11,0.00020965,2]
[367989732,1750984248078,-484.22,0.00020965,2]
[367989734,1750984248088,-460.0,0.00020965,2]
[367989736,1750984248100,-460.0,0.00020965,2]
[367989738,1750984248109,-462.95534283,0.00020965,2]
[367989740,1750984248119,-460.0,0.00020965,2]
[367989742,1750984248129,-673.44,0.00020965,2]
[367989744,1750984248139,-460.0,0.00020965,2]
[367989746,1750984248149,-460.0,0.00020965,2]
[367989748,1750984248159,-865.75,0.00020965,2]
[367989750,1750984248169,-476.83,0.00020965,2]
[367989752,1750984248179,-460.0,0.00020965,2]
[367989754,1750984248189,-711.2,0.00020965,2]
[367989756,1750984248199,-460.0,0.00020965,2]
[367989758,1750984248211,-460.0,0.00020965,2]
[367989760,1750984248221,-460.0,0.00020965,2]
[367989762,1750984248231,-460.0,0.00020965,2]
[367989764,1750984248241,-460.0,0.00020965,2]
[367989766,1750984248250,-151.0,0.00020965,2]
[367989768,1750984248260,-542.31,0.00020965,2]
[367989770,1750984248270,-460.0,0.00020965,2]
[367989772,1750984248279,-460.0,0.00020965,2]
[367989773,1750984248288,-460.0,0.00020965,2]
[367989775,1750984248297,-460.0,0.00020965,2]
[367989777,1750984248307,-460.0,0.00020965,2]
[367989779,1750984248317,-668.58,0.00020965,2]
[367989781,1750984248326,-460.0,0.00020965,2]
[367989783,1750984248336,-460.0,0.00020965,2]
[367989785,1750984248345,-460.0,0.00020965,2]
[367989787,1750984248355,-151.0,0.00020965,2]
[367989789,1750984248365,-151.0,0.00020965,2]
[367989791,1750984248374,-162.695209,0.00020965,2]
[367989793,1750984248384,-151.0,0.00020965,2]
[367989795,1750984248393,-500.0,0.00020965,2]
[367989797,1750984248403,-500.0,0.00020965,2]
[367989799,1750984248413,-500.0,0.00020965,2]
[367989801,1750984248423,-151.0,0.00020965,2]
[367989803,1750984248433,-460.0,0.00020965,2]
[367989805,1750984248443,-824.070098,0.00020965,2]
[367989806,1750984248452,-824.070098,0.00020965,2]
[367989807,1750984248462,-460.0,0.00020965,2]
[367989808,1750984248472,-151.0,0.00020965,2]
[367989809,1750984248482,-1150.08,0.00020965,2]
[367989810,1750984248491,-151.0,0.00020965,2]
[367989811,1750984248501,-151.0,0.00020965,2]
[367989812,1750984248510,-229.3221117,0.00020965,2]
[367989813,1750984248520,-460.0,0.00020965,2]
[367989814,1750984248529,-151.0,0.00020965,2]
[367989815,1750984248539,-460.0,0.00020965,2]
[367989816,1750984248548,-467.8,0.00020965,2]
[367989817,1750984248557,-460.0,0.00020965,2]
[367989818,1750984248567,-460.0,0.00020965,2]
[367989819,1750984248577,-460.0,0.00020965,2]
[367989820,1750984248586,-406.0,0.00020965,2]
[367989821,1750984248596,-574.18,0.00020965,2]
[367989822,1750984248607,-460.0,0.00020965,2]
[367989823,1750984248617,-460.0,0.00020965,2]
[367989824,1750984248627,-460.0,0.00020965,2]
[367989825,1750984248636,-1000.0,0.00020965,2]
[367989826,1750984248645,-1000.0,0.00020965,2]
[367989827,1750984248655,-1000.0,0.00020965,2]
[367989828,1750984248664,-460.0,0.00020965,2]
[367989829,1750984248674,-460.0,0.00020965,2]
[367989830,1750984248685,-460.0,0.00020965,2]
[367989831,1750984248694,-460.0,0.00020965,2]
[367989832,1750984248704,-460.0,0.00020965,2]
[367989834,1750984248713,-460.0,0.00020965,2]
[367989835,1750984248722,-460.0,0.00020965,2]
[367989836,1750984248732,-402.77,0.00020965,2]
[367989838,1750984248742,-500.0,0.00020966,2]
[367989840,1750984248752,-500.0,0.00020966,2]
[367989842,1750984248762,-500.0,0.00020966,2]
[367989844,1750984248771,-151.0,0.00020966,2]
[367989846,1750984248781,-151.0,0.00020966,2]
[367989848,1750984248790,-151.0,0.00020966,2]
[367989850,1750984248800,-1000.0,0.00020966,2]
[367989852,1750984248810,-1000.0,0.00020966,2]
[367989854,1750984248820,-1000.0,0.00020966,2]
[367989856,1750984248829,-151.0,0.00020967,2]
[367989858,1750984248839,-151.0,0.00020967,2]
[367989860,1750984248847,-191.719788,0.00020967,2]
[367989862,1750984248857,-500.0,0.00020967,2]
[367989864,1750984248867,-500.0,0.00020967,2]
[367989866,1750984248876,-500.0,0.00020967,2]
[367989868,1750984248886,-191.719788,0.00020967,2]
[367989870,1750984248896,-1201.958262,0.00020967,2]
[367989872,1750984248906,-1201.958262,0.00020967,2]
[367989874,1750984248916,-1000.0,0.00020967,2]
[367989876,1750984248926,-1000.0,0.00020967,2]
[367989878,1750984248935,-1000.0,0.00020967,2]
[367989880,1750984248945,-1000.0,0.00020967,2]
[367989882,1750984248954,-151.0,0.00020968,2]
[367989884,1750984248963,-151.0,0.00020968,2]
[367989886,1750984248973,-154.364562,0.00020968,2]
[367989888,1750984248983,-156.905625,0.00020968,2]
[367989890,1750984248992,-154.364562,0.00020968,2]
[367989892,1750984249002,-156.905625,0.00020968,2]
[367989894,1750984249012,-151.0,0.00020968,2]
[367989896,1750984249022,-1000.0,0.00020972,2]
[367989898,1750984249031,-500.0,0.00020973,2]
[367989900,1750984249041,-500.0,0.00020973,2]
[367989902,1750984249050,-500.0,0.00020973,2]
[367989904,1750984249060,-500.0,0.00020973,2]
[367989906,1750984249069,-500.0,0.00020973,2]
[367989908,1750984249079,-511.0992113,0.00020973,2]
[367989910,1750984249088,-500.0,0.00020973,2]
[367989912,1750984249098,-500.0,0.00020973,2]
[367989914,1750984249107,-1000.0,0.00020979,2]
[367989916,1750984249118,-203.57964836,0.00020979,2]
[367989918,1750984249127,-460.0,0.0002098,2]
[367989920,1750984249137,-460.0,0.0002098,2]
[367989922,1750984249147,-291.05667791,0.0002098,2]
[367989924,1750984249156,-598.14986075,0.0002098,2]
[367989926,1750984249165,-460.0,0.0002098,2]
[367989928,1750984249175,-471.79044387,0.0002098,2]
[367989930,1750984249185,-460.0,0.0002098,2]
[367989932,1750984249196,-460.0,0.0002098,2]
[367989934,1750984249206,-461.04852452,0.0002098,2]
[367989936,1750984249216,-460.0,0.0002098,2]
[367989938,1750984249227,-460.0,0.0002098,2]
[367989940,1750984249237,-460.0,0.0002098,2]
[367989942,1750984249247,-460.0,0.0002098,2]
[367989944,1750984249258,-460.0,0.0002098,2]
[367989947,1750984249268,-460.0,0.0002098,2]
[367989949,1750984249279,-460.0,0.0002098,2]
[367989950,1750984249288,-460.0,0.0002098,2]
[367989952,1750984249299,-351.14422609,0.0002098,2]
[367989954,1750984249309,-460.0,0.0002098,2]
[367989956,1750984249320,-460.0,0.0002098,2]
[367989958,1750984249331,-460.0,0.0002098,2]
[367989960,1750984249341,-460.0,0.0002098,2]
[367989962,1750984249351,-491.91,0.0002098,2]
[367989964,1750984249362,-460.0,0.0002098,2]
[367989967,1750984249372,-460.0,0.0002098,2]
[367989969,1750984249382,-460.0,0.0002098,2]
[367989971,1750984249392,-430.0,0.0002098,2]
[367989973,1750984249401,-460.0,0.0002098,2]
[367989975,1750984249411,-460.0,0.0002098,2]
[367989977,1750984249421,-460.0,0.0002098,2]
[367989979,1750984249431,-460.0,0.0002098,2]
[367989981,1750984249440,-430.0,0.0002098,2]
[367989983,1750984249450,-460.0,0.0002098,2]
[367989985,1750984249459,-460.0,0.0002098,2]
[367989987,1750984249469,-713.56,0.0002098,2]
[367989989,1750984249479,-460.0,0.0002098,2]
[367989991,1750984249489,-460.0,0.0002098,2]
[367989993,1750984249498,-151.0,0.0002098,2]
[367989995,1750984249509,-460.0,0.0002098,2]
[367989997,1750984249518,-238.257354,0.0002098,2]
[367989999,1750984249527,-460.0,0.0002098,2]
[367990001,1750984249537,-238.257354,0.0002098,2]
[367990003,1750984249547,-151.0,0.0002098,2]
[367990005,1750984249556,-151.0,0.0002098,2]
[367990007,1750984249566,-151.0,0.0002098,2]
[367990009,1750984249576,-461.05595539,0.0002098,2]
[367990011,1750984249586,-151.0,0.0002098,2]
[367990013,1750984249596,-460.0,0.0002098,2]
[367990015,1750984249605,-151.0,0.0002098,2]
[367990017,1750984249615,-460.0,0.0002098,2]
[367990019,1750984249625,-151.0,0.0002098,2]
[367990021,1750984249634,-460.0,0.0002098,2]
[367990023,1750984249644,-460.0,0.0002098,2]
[367990025,1750984249653,-460.0,0.0002098,2]
[367990027,1750984249663,-151.0,0.0002098,2]
[367990029,1750984249672,-151.0,0.0002098,2]
[367990031,1750984249682,-151.0,0.0002098,2]
[367990033,1750984249691,-151.0,0.0002098,2]
[367990035,1750984249700,-824.070098,0.0002098,2]
[367990037,1750984249709,-824.070098,0.0002098,2]
[367990039,1750984249719,-154.429768,0.0002098,2]
[367990041,1750984249729,-151.0,0.0002098,2]
[367990043,1750984249738,-387.342012,0.0002098,2]
[367990045,1750984249747,-387.342012,0.0002098,2]
[367990047,1750984249757,-223.3,0.00020987,4]
[367990049,1750984249767,-244.81484,0.0002099,2]
[367990051,1750984249776,-151.0,0.0002099,2]
[367990053,1750984249785,-151.0,0.0002099,2]
[367990055,1750984249795,-151.0,0.0002099,2]
[367990057,1750984249804,-301.243142,0.0002099,2]
[367990059,1750984249814,-151.0,0.0002099,2]
[367990061,1750984249824,-171.932477,0.0002099,2]
[367990063,1750984249834,-307.157213,0.0002099,2]
[367990065,1750984249844,-171.932477,0.0002099,2]
[367990067,1750984249853,-307.157213,0.0002099,2]
[367990069,1750984249863,-151.0,0.0002099,2]
[367990071,1750984249873,-151.0,0.0002099,2]
[367990073,1750984249884,-238.257354,0.0002099,2]
[367990088,1750984250019,-238.257354,0.0002099,2]
[367990090,1750984250028,-151.0,0.0002099,2]
[367990092,1750984250038,-151.0,0.0002099,2]
[367990094,1750984250047,-151.0,0.0002099,2]
[367990096,1750984250056,-151.0,0.0002099,2]
[367990098,1750984250065,-151.0,0.0002099,2]
[367990100,1750984250075,-151.0,0.0002099,2]
[367990102,1750984250084,-309.905881,0.0002099,2]
[367990104,1750984250093,-309.905881,0.0002099,2]
[367990106,1750984250104,-154.364562,0.0002099,2]
[367990108,1750984250114,-156.905625,0.0002099,2]
[367990110,1750984250123,-154.364562,0.0002099,2]
[367990112,1750984250132,-156.905625,0.0002099,2]
[367990114,1750984250142,-151.0,0.0002099,2]
[367990116,1750984250152,-151.0,0.0002099,2]
[367990118,1750984250162,-191.719788,0.0002099,2]
[367990120,1750984250171,-191.719788,0.0002099,2]
[367990122,1750984250180,-151.0,0.0002099,2]
[367990124,1750984250189,-151.0,0.0002099,2]
[367990126,1750984250203,-158.57032,0.0002099,2]
[367990128,1750984250212,-1201.958262,0.0002099,2]
[367990130,1750984250221,-1201.958262,0.0002099,2]
[367990132,1750984250231,-8116.81486345,0.00021,2]
[367990153,1750984250417,-4221.48661148,0.00021,2]
[367990155,1750984250429,-1388.36667946,0.00021,2]
[367990157,1750984250441,-528.51191877,0.00021,2]
[367990159,1750984250452,-539.84621936,0.00021,2]
[367990161,1750984250464,-406.45986646,0.00021,2]
[367990164,1750984250474,-1051.33495113,0.00021,2]
[367990178,1750984250598,-456.30140564,0.00019988,2]
[367990181,1750984250618,-3.69859436,0.00019988,2]
[367990183,1750984250628,-460.0,0.00020262,2]
[367990185,1750984250637,-370.7058492,0.00020536,2]
[367990187,1750984250648,-173.90273075,0.00020536,2]
[367990189,1750984250657,-266.09726925,0.0002081,2]
[367990212,1750984250869,-460.0,0.00019649,2]
[367990214,1750984250878,-460.0,0.00019923,2]
[367990216,1750984250887,-590.54286958,0.00020197,2]
[367990218,1750984250897,-3734.65273075,0.0002081,2]
[367990220,1750984250907,-460.57179757,0.00020863,2]
[367990222,1750984250916,-20106.37289868,0.00021,2]
[367990224,1750984250925,-151.0,0.00021,2]
[367990226,1750984250934,-151.0,0.00021,2]
[367990228,1750984250943,-151.0,0.00021,2]
[367990230,1750984250953,-151.0,0.00021,2]
[367990233,1750984250962,-152.059841,0.00021,2]
[367990234,1750984250972,-824.070098,0.00021,2]
[367990237,1750984250981,-824.070098,0.00021,2]
[367990238,1750984250990,-151.0,0.00021,2]
[367990240,1750984250999,-151.0,0.00021,2]
[367990241,1750984251008,-151.0,0.00021,2]
[367990242,1750984251017,-151.0,0.00021,2]
[367990243,1750984251026,-5888.0,0.0002101,2]
[367990244,1750984251036,-609.77,0.00021019,2]
[367990245,1750984251045,-7100.93762284,0.00021072,4]
[367990247,1750984251054,-460.0,0.00021084,2]
[367990249,1750984251063,-460.0,0.00021084,2]
[367990251,1750984251072,-587.88,0.00021084,2]
[367990253,1750984251082,-460.0,0.00021084,2]
[367990255,1750984251091,-602.58,0.00021084,2]
[367990257,1750984251100,-909.97,0.00021084,2]
[367990259,1750984251110,-3506.8,0.00021084,2]
[367990261,1750984251119,-460.0,0.00021084,2]
[367990263,1750984251129,-3322.62,0.00021084,2]
[367990265,1750984251138,-460.0,0.00021084,2]
[367990267,1750984251149,-4000.75,0.00021084,2]
[367990269,1750984251159,-600.0,0.0002112,2]
[367990271,1750984251168,-223.3,0.00021132,4]
[367990273,1750984251179,-460.0,0.00021137,2]
[367990275,1750984251188,-460.0,0.00021137,2]
[367990277,1750984251198,-385.09385702,0.00021137,2]
[367990279,1750984251207,-460.0,0.00021137,2]
[367990281,1750984251217,-258.40990038,0.00021137,2]
[367990283,1750984251226,-460.0,0.00021137,2]
[367990285,1750984251236,-460.0,0.00021137,2]
[367990287,1750984251247,-460.0,0.00021137,2]
[367990289,1750984251256,-460.0,0.00021137,2]
[367990292,1750984251265,-460.0,0.00021137,2]
[367990294,1750984251275,-606.39726898,0.00021137,2]
[367990296,1750984251284,-460.0,0.00021137,2]
[367990297,1750984251294,-460.0,0.00021137,2]
[367990299,1750984251303,-460.0,0.00021137,2]
[367990301,1750984251313,-460.0,0.00021137,2]
[367990303,1750984251322,-460.0,0.00021137,2]
[367990305,1750984251332,-460.0,0.00021137,2]
[367990308,1750984251342,-477.09,0.00021137,2]
[367990310,1750984251352,-460.0,0.00021137,2]
[367990311,1750984251362,-460.0,0.00021137,2]
[367990314,1750984251371,-460.0,0.00021137,2]
[367990315,1750984251380,-460.0,0.00021137,2]
[367990317,1750984251389,-460.0,0.00021137,2]
[367990319,1750984251399,-352.70176802,0.00021137,2]
[367990322,1750984251409,-460.0,0.00021137,2]
[367990323,1750984251419,-460.0,0.00021137,2]
[367990326,1750984251428,-460.0,0.00021137,2]
[367990327,1750984251438,-460.0,0.00021137,2]
[367990330,1750984251448,-462.5407306,0.00021137,2]
[367990331,1750984251457,-460.0,0.00021137,2]
[367990332,1750984251467,-460.0,0.00021137,2]
[367990333,1750984251476,-502.51766207,0.00021137,2]
[367990334,1750984251485,-460.0,0.00021137,2]
[367990335,1750984251494,-460.0,0.00021137,2]
[367990336,1750984251504,-460.0,0.00021137,2]
[367990337,1750984251513,-460.0,0.00021137,2]
[367990338,1750984251523,-460.0,0.00021137,2]
[367990339,1750984251532,-597.05320315,0.00021137,2]
[367990340,1750984251541,-460.0,0.00021137,2]
[367990341,1750984251550,-460.0,0.00021137,2]
[367990342,1750984251559,-615.81,0.00021137,2]
[367990343,1750984251568,-567.3,0.00021137,2]
[367990344,1750984251578,-590.1,0.00021137,2]
[367990345,1750984251587,-460.0,0.00021137,2]